[Event "Canarian Championship Seniors 2022"]
[Site "Brena Baja La Palma"]
[Date "2022.06.02"]
[Round "2.2"]
[White "Martin Luis, Cesar"]
[Black "Camino Carrio, Nicanor"]
[Result "1-0"]
[ECO "E94"]
[WhiteElo "2049"]
[BlackElo "1945"]
[Annotator "TA"]
[PlyCount "91"]
[EventDate "2022.06.01"]
[EventType "swiss"]
[EventCountry "ESP"]
[SourceTitle "playchess.com"]
[Source "ChessBase"]
[SourceQuality "1"]
[TimeControl "5400+30"]

{[%evp 18,91,96,68,92,70,75,69,97,41,53,0,94,87,83,60,60,62,56,55,64,37,115,124,116,115,185,111,112,18,14,12,14,14,54,26,28,22,33,17,18,0,0,0,0,0,262,263,249,237,290,232,452,464,454,436,525,459,595,608,599,586,643,620,694,684,728,697,656,649,905,881,3010,2477,29988,29989]} 1. d4 {[%emt 0:00:02]} Nf6 {[%emt 0:00:14]} 2. c4 {[%emt 0:00:12]} g6 {[%emt 0:00:13]} 3. Nc3 {[%emt 0:00:16]} Bg7 {[%emt 0:00:34]} 4. e4 {[%emt 0:00:17]} d6 {[%emt 0:00:17]} 5. Nf3 {[%emt 0:00:11]} O-O {[%emt 0:00:16]} 6. Be2 {[%emt 0:00:09]} Nbd7 {[%emt 0:00:20]} 7. O-O {[%emt 0:01:21]} e5 {[%emt 0:00:13]} 8. Be3 {[%emt 0:01:02]} c6 {[%emt 0:00:39]} 9. d5 {[%emt 0:23:01]} c5 {[%emt 0:01:34]} 10. Nd2 {[%emt 0:00:11]} (10. h3) 10... Qe7 {[%emt 0:01:11] E94: King's Indian: Classical: 6 Be2 e5 7 0-0: Various Black 7th moves.} 11. a3 {[%emt 0:02:12]} Ne8 {[%emt 0:03:49]} 12. Bd3 {[%emt 0:07:45] [#]} Bf6 $146 {[%emt 0:09:48] White is slightly better.} ({Predecessor:} 12... f5 13. f4 exf4 14. Bxf4 Bd4+ 15. Kh1 g5 16. Bg3 f4 17. Bf2 Bxf2 18. Rxf2 Ne5 19. Be2 g4 20. Qf1 Qg5 {0-1 (34) Wang,A (2169)-Kavutskiy,K (2377) Las Vegas 2016}) 13. Bh6 {[%emt 0:14:17] White is more active.} (13. Nf3) (13. Nf3 $16) 13... Bg7 $14 {[%emt 0:01:02]} 14. Be3 {[%emt 0:00:17]} (14. Bxg7 Kxg7 15. Re1) (14. Bxg7 $14 Kxg7 15. Re1) 14... Kh8 {[%emt 0:01:51]} (14... Bf6 $1 $11 {remains equal.}) 15. Qc2 {[%emt 0:01:30]} Ndf6 {[%emt 0:02:59]} 16. Be2 {[%emt 0:03:58]} Ng4 {[%emt 0:00:48]} 17. Bxg4 {[%emt 0:00:28]} Bxg4 {[%emt 0:00:09]} 18. b4 {[%emt 0:00:12]} b6 $1 {[%emt 0:01:01]} 19. bxc5 {[%emt 0:00:16]} dxc5 {[%emt 0:02:34] [#]} (19... bxc5 $14 20. Rfb1 Bc8) 20. a4 $1 $16 {[%emt 0:01:56]} Nd6 {[%emt 0:01:59]} 21. a5 {[%emt 0:00:54]} Bd7 {[%emt 0:02:44]} (21... Qc7) (21... Rab8 $16) 22. axb6 {[%emt 0:00:51]} (22. Rfb1) (22. Rfb1 $18) 22... axb6 {[%emt 0:00:05]} 23. Rxa8 {[%emt 0:04:04]} ({White should play} 23. Qb3 $16) 23... Rxa8 $11 {[%emt 0:00:08]} 24. Qb2 {[%emt 0:00:07]} Qd8 {[%emt 0:02:41]} 25. Ra1 {[%emt 0:02:14]} Rb8 {[%emt 0:06:27]} 26. Rb1 {[%emt 0:00:47][%cal Oe3c5] Black must now prevent Bxc5!} Rb7 {[%emt 0:02:07]} 27. Qa3 {[%emt 0:01:54]} h6 {[%emt 0:01:53]} 28. Qa6 {[%emt 0:00:12]} Qb8 {[%emt 0:11:08]} 29. h3 {[%emt 0:02:45]} f5 {[%emt 0:01:17]} 30. f3 {[%emt 0:00:28]} f4 {[%emt 0:06:12]} 31. Bf2 {[%emt 0:00:07]} Bf6 $2 {[%emt 0:00:07][%mdl 8192] [#] White leaves nothing to chance now.} (31... Qc7 $11) 32. Bxc5 $1 $18 {[%emt 0:12:13][%mdl 512]} Nc8 {[%emt 0:05:47] ...Ra7 is the strong threat.} 33. Nb5 {[%emt 0:00:24] Prevents Ra7.} Bh4 {[%emt 0:03:11]} 34. Bf2 {[%emt 0:02:41]} Bg3 {[%emt 0:03:25]} (34... Bxf2+ 35. Kxf2 Kh7) 35. Bxg3 {[%emt 0:02:06]} fxg3 {[%emt 0:00:07]} 36. Nf1 {[%emt 0:00:34]} Bxb5 {[%emt 0:02:53]} 37. Qxb5 {[%emt 0:00:04]} (37. cxb5 Ra7 38. Nxg3 Rxa6 39. bxa6 b5) ({Not} 37. cxb5 $2 Ra7 38. Nxg3 Rxa6 39. bxa6 b5 $19) 37... Na7 {[%emt 0:02:06]} 38. Qb4 {[%emt 0:00:33]} Qd8 {[%emt 0:01:36]} 39. c5 {[%emt 0:02:48][%cal Bc4c5,Bc5c6][%mdl 32]} b5 {[%emt 0:00:42]} 40. Nxg3 {[%emt 0:00:31]} Qg5 {[%emt 0:00:15]} 41. Nf1 {[%emt 0:01:00]} Rf7 {[%emt 0:00:16]} 42. Qc3 {[%emt 0:00:46]} Kh7 {[%emt 0:03:40]} 43. c6 {[%emt 0:01:09]} Nc8 {[%emt 0:00:20]} 44. Qc5 {[%emt 0:00:38]} Rxf3 {[%emt 0:00:30]} 45. d6 {[%emt 0:00:18][%cal Bd5d6,Bd6d7][%mdl 32] And now d7 would win.} Rxh3 {[%emt 0:05:34]} 46. d7 {[%emt 0:01:11] Weighted Error Value: White=0.18 (very precise) /Black=0.72} 1-0

[Event "Canarian Championship Seniors 2022"]
[Site "Brena Baja La Palma"]
[Date "2022.06.02"]
[Round "2.3"]
[White "Martin Rodriguez, Jose Carlos"]
[Black "Haertl, Siegfried"]
[Result "1-0"]
[ECO "D02"]
[WhiteElo "1703"]
[BlackElo "1932"]
[Annotator "TA"]
[PlyCount "61"]
[EventDate "2022.06.01"]
[EventType "swiss"]
[EventCountry "ESP"]
[SourceTitle "playchess.com"]
[Source "ChessBase"]
[SourceQuality "1"]
[TimeControl "5400+30"]

{[%evp 9,61,12,46,-16,-13,-15,13,-21,12,4,17,1,17,13,8,-22,-6,-25,65,63,48,62,43,21,51,8,13,22,49,48,120,117,130,119,173,173,173,173,227,220,258,251,548,549,528,417,1114,1114,29991,29992,29994,29995,29995,29996]} 1. d4 {[%emt 0:01:04]} d5 {[%emt 0:00:20]} 2. Nf3 {[%emt 0:00:19]} Nf6 {[%emt 0:00:12]} 3. g3 {[%emt 0:00:27]} Bf5 {[%emt 0:01:27]} 4. Bg2 {[%emt 0:00:06]} e6 {[%emt 0:00:13]} 5. O-O {[%emt 0:00:14]} c5 {[%emt 0:00:21]} 6. c3 {[%emt 0:00:44] D02: 1 d4 d5 2 Nf3 sidelines, including 2...Nf6 3 g3 and 2...Nf6 3 Bf4.} ({White should try} 6. c4 $14) 6... Nc6 $11 {[%emt 0:00:27]} 7. Bg5 {[%emt 0:02:23][%cal Oc3c4]} Be7 {[%emt 0:00:34] [#]} 8. e3 $146 {[%emt 0:01:36] The position is equal.} ({Predecessor:} 8. Nbd2 O-O 9. Nh4 Bg4 10. h3 Bh5 11. g4 Bg6 12. Nxg6 hxg6 13. e3 c4 14. Qe2 {1-0 (35) Mihir Lal,D (1880)-Md Masum,H (2116) Dhaka 2017}) 8... Ne4 {[%emt 0:02:51]} 9. Bxe7 {[%emt 0:00:23]} Qxe7 {[%emt 0:00:13]} 10. Nbd2 {[%emt 0:02:04]} Bg4 {[%emt 0:05:49][%cal Bf5g4,Bg4h5,Bh5g6][%mdl 32]} 11. h3 {[%emt 0:01:35]} Bh5 {[%emt 0:00:53]} 12. g4 {[%emt 0:01:28]} Bg6 {[%emt 0:00:12]} 13. Ne5 {[%emt 0:01:01]} cxd4 {[%emt 0:05:09]} (13... Nxe5 $11 14. Nxe4 (14. dxe5 Nxd2 15. Qxd2 h5 $17) 14... Bxe4 15. Bxe4 Nc6) 14. Nxc6 $14 {[%emt 0:04:43]} ({Of course not} 14. cxd4 $6 Nxe5 15. dxe5 Nxd2 16. Qxd2 h5 $11) 14... bxc6 {[%emt 0:01:43]} 15. Nxe4 {[%emt 0:01:14]} ({Reject} 15. exd4 Nxd2 16. Qxd2 h5 $11) 15... dxe4 {[%emt 0:02:09]} 16. Qxd4 {[%emt 0:00:40]} f5 {[%emt 0:04:05]} 17. Qe5 {[%emt 0:01:38]} Rd8 {[%emt 0:06:03]} 18. Rad1 {[%emt 0:00:23] Threatens to win with Rxd8+.} Kf7 {[%emt 0:02:48]} 19. f3 {[%emt 0:01:14][%cal Rf3e4]} Rd5 {[%emt 0:03:37] [#]} ({Better is} 19... Rxd1 $14 20. Rxd1 Rd8 21. Rxd8 Qxd8) 20. Rxd5 $1 $16 {[%emt 0:00:09]} exd5 {[%emt 0:01:05]} 21. Qd4 {[%emt 0:02:08] fxe4 is the strong threat.} Ke8 {[%emt 0:05:42]} (21... Rd8 $16) 22. fxe4 $18 {[%emt 0:00:35]} fxe4 {[%emt 0:00:24]} 23. c4 {[%emt 0:01:44]} dxc4 {[%emt 0:06:10]} (23... Rf8 {was called for.} 24. cxd5 Rxf1+ 25. Bxf1 cxd5 26. Qxd5 Kf8) 24. Qxc4 {[%emt 0:00:18]} Kd7 {[%emt 0:02:38]} 25. Qa6 {[%emt 0:01:50]} Qc5 $2 {[%emt 0:00:48]} (25... Rd8 26. Qxa7+ Ke8) 26. Qb7+ {[%emt 0:01:34]} Ke6 {[%emt 0:00:16]} 27. Qxg7 {[%emt 0:00:08] [#] White threatens Rf6+ and mate.} Qxe3+ {[%emt 0:01:12]} (27... Qe5 28. Qxa7 Qd6) (27... Qe5 $142 28. Qxa7 Qd6) 28. Kh1 {[%emt 0:00:11] Threatening mate with Rf6+.} Re8 {[%emt 0:07:05]} 29. Rf6+ {[%emt 0:02:25] White mates.} Kd5 {[%emt 0:00:09]} 30. Qd7+ {[%emt 0:00:01]} Kc4 {[%emt 0:00:02]} 31. Rxc6+ {[%emt 0:00:02] Weighted Error Value: White=0.15 (very precise) /Black=0.73} 1-0

[Event "Canarian Championship Seniors 2022"]
[Site "Brena Baja La Palma"]
[Date "2022.06.02"]
[Round "2.4"]
[White "Gonzalez Ortega, Jose Miguel"]
[Black "Lopez Pereyra, Antonio"]
[Result "0-1"]
[ECO "A80"]
[WhiteElo "1726"]
[BlackElo "2025"]
[Annotator "TA"]
[PlyCount "110"]
[EventDate "2022.06.01"]
[EventType "swiss"]
[EventCountry "ESP"]
[SourceTitle "playchess.com"]
[Source "ChessBase"]
[SourceQuality "1"]
[TimeControl "5400+30"]

{[%evp 9,110,-7,9,-7,0,-32,0,0,0,0,0,14,8,0,30,30,23,18,25,21,19,18,26,13,17,12,30,26,33,35,36,29,31,-4,6,0,16,19,49,9,163,187,258,248,371,44,145,-6,-8,-8,-16,-104,-104,-110,-84,-102,6,-81,-81,-78,-7,-8,-10,-220,-147,-389,-130,-114,-132,-151,-121,-140,-147,-162,-165,-179,-8,-64,-63,-72,-13,-25,-8,-79,-7,-7,-7,-7,-7,-7,0,-7,0,-8,-8,-8,0,-4,0,-8,-8,-8,-11]} 1. d4 {[%emt 0:00:05]} e6 {[%emt 0:00:20]} 2. e3 {[%emt 0:00:19]} f5 {[%emt 0:00:37]} 3. f4 {[%emt 0:00:17]} Nf6 {[%emt 0:00:40]} 4. Nf3 {[%emt 0:00:18]} b6 {[%emt 0:01:43]} 5. Bd3 {[%emt 0:00:27]} Bb7 {[%emt 0:00:39]} 6. Nbd2 {[%emt 0:00:28] A80: Dutch Defence: Unusual White second moves.} c5 {[%emt 0:03:25]} 7. c3 {[%emt 0:00:27]} cxd4 {[%emt 0:02:52]} 8. exd4 {[%emt 0:00:17] [#]} Be7 $146 {[%emt 0:04:51]} ({Predecessor:} 8... Qc7 9. Nc4 Be7 10. Qe2 O-O 11. Bd2 Be4 12. O-O-O Rc8 13. Ne3 Bxd3 14. Qxd3 Ne4 {1-0 (25) Stock,J (1972)-Hock,G (2031) Hofheim 2017}) 9. O-O {[%emt 0:02:12]} O-O {[%emt 0:00:07]} 10. Qe2 {[%emt 0:02:25]} Nc6 {[%emt 0:05:57]} 11. Ne5 {[%emt 0:02:14]} Nxe5 {[%emt 0:11:28]} 12. fxe5 {[%emt 0:02:02]} Nd5 {[%emt 0:00:02]} 13. Nc4 {[%emt 0:07:59]} Kh8 {[%emt 0:11:56]} 14. Ne3 {[%emt 0:03:54]} Nxe3 {[%emt 0:04:18]} 15. Bxe3 {[%emt 0:00:38]} Qc8 {[%emt 0:04:25]} 16. Rad1 {[%emt 0:09:27]} Rf7 {[%emt 0:06:42]} 17. Bc4 {[%emt 0:06:30]} g5 {[%emt 0:05:33]} 18. d5 {[%emt 0:01:55]} Bc5 {[%emt 0:00:44] ...Bxe3+ is the strong threat.} 19. dxe6 {[%emt 0:02:05]} dxe6 {[%emt 0:00:25] White must now prevent ...Bxe3+.} 20. Bxc5 {[%emt 0:01:26]} Qxc5+ {[%emt 0:00:19]} 21. Kh1 {[%emt 0:00:19]} Re8 {[%emt 0:05:34]} 22. Rd6 {[%emt 0:00:57]} f4 {[%emt 0:06:59][%cal Of4f3]} (22... Be4 $5 {[%cal Rc5e5]}) 23. b4 $1 {[%emt 0:05:03]} (23. Bxe6 Rfe7 24. b4 Qxc3 $17) 23... Qc8 {[%emt 0:00:06][%cal Of4f3] aiming for ...f3!} 24. Kg1 {[%emt 0:07:31]} (24. Qd3 $5 {[%cal Rc4e6]}) 24... g4 $2 {[%emt 0:02:26]} (24... Rc7 $11 25. Bb3 Ba6) 25. Qd3 $1 $18 {[%emt 0:02:19][%cal Oc4e6] And now Bxe6! would win.} Kg7 {[%emt 0:06:45]} (25... Bd5 {was worth a try.} 26. Bxd5 exd5) 26. Bb5 {[%emt 0:03:21]} ({Don't do} 26. Qd4 $6 f3 27. Qxg4+ Kh8 $16) 26... Ree7 {[%emt 0:04:10] Prevents Bd7.} (26... Ref8 {is a better defense.} 27. Rf2 Qc7) 27. Qc4 $2 {[%emt 0:01:48]} ({Less strong is} 27. Rd8 Qc7 $16) (27. Qd2 $18) 27... Rc7 {[%emt 0:02:40]} (27... Qxc4 $14 28. Bxc4 Bd5 29. Bxd5 exd5) 28. Qxe6 $2 {[%emt 0:02:01]} (28. Qe2 $1 $16 {[%cal Re2g4]}) 28... Qxe6 $11 {[%emt 0:00:17]} 29. Rxe6 {[%emt 0:00:16]} Rxc3 {[%emt 0:00:43]} 30. Be8 {[%emt 0:00:17]} (30. Rd6 $1 $11) 30... Rc2 $36 {[%emt 0:01:23][%csl LRa2,LRg2][%mdl 2048] Black is on the roll.} 31. Rf2 {[%emt 0:01:03]} Rc1+ {[%emt 0:01:28]} 32. Rf1 {[%emt 0:00:16]} Rxf1+ {[%emt 0:02:08]} 33. Kxf1 {[%emt 0:00:12][%mdl 4096] Endgame KRB-KRB} Rc7 {[%emt 0:00:11] Threatens to win with ...Rc1+.} 34. Rf6 {[%emt 0:00:30]} f3 {[%emt 0:01:08]} ({Black should try} 34... g3 $17 35. hxg3 fxg3) 35. gxf3 $11 {[%emt 0:00:28]} Bxf3 {[%emt 0:00:50]} 36. h3 $2 {[%emt 0:01:44]} (36. Rf4 $11 {and White has nothing to worry.}) 36... Re7 {[%emt 0:01:28]} 37. hxg4 $2 {[%emt 0:00:54]} (37. Ba4 $17) 37... Bxg4 $2 {[%emt 0:00:39]} ({Worse is} 37... Rxe8 38. Rxf3 Rxe5 39. Kf2 $11) (37... Be2+ $1 $19 {has better winning chances.} 38. Kf2 Rxe8) 38. Ba4 $17 {[%emt 0:00:52]} Rxe5 {[%emt 0:00:04]} 39. Rd6 {[%emt 0:00:27]} h5 {[%emt 0:01:21]} 40. Bd7 {[%emt 0:00:28]} Be2+ {[%emt 0:01:26]} 41. Kf2 {[%emt 0:00:23]} Bc4 {[%emt 0:00:41]} 42. a4 {[%emt 0:01:24] [#]} Rg5 $2 {[%emt 0:00:37]} (42... Rd5 $1 $19 {[%cal Rd5d6]} 43. Rxd5 Bxd5) 43. Bc6 {[%emt 0:01:26]} (43. Be6 $11 Bxe6 44. Rxe6) 43... Rf5+ $15 {[%emt 0:01:03]} 44. Kg3 {[%emt 0:00:26] [#]} Rf6 {[%emt 0:00:14]} (44... Bb3 $1 $17) 45. Rd7+ $11 {[%emt 0:00:23]} Kh6 {[%emt 0:00:02]} 46. Be4 {[%emt 0:00:38]} (46. Bd5 $11 Rg6+ 47. Kh2 Bxd5 48. Rxd5) 46... Rf7 {[%emt 0:00:37]} ({Black should play} 46... h4+ $1 $17 47. Kxh4 Rf4+ 48. Kg3 Rxe4 49. Rxa7 Kg5) 47. Rd6+ {[%emt 0:00:28] The position is equal.} Kg7 {[%emt 0:00:31]} 48. Bd5 {[%emt 0:01:35]} Bxd5 {[%emt 0:00:32]} 49. Rxd5 {[%emt 0:00:09] KR-KR} Kg6 {[%emt 0:00:14]} 50. a5 {[%emt 0:00:16]} bxa5 {[%emt 0:00:33]} (50... Rf5 $5 51. Rd6+ Rf6 $11) 51. Rxa5 {[%emt 0:00:23]} Rb7 {[%emt 0:00:59]} 52. b5 {[%emt 0:00:35]} Kh6 {[%emt 0:00:36]} 53. Kh4 {[%emt 0:00:12]} Kg6 {[%emt 0:00:35]} 54. Ra6+ {[%emt 0:01:28]} Kf5 {[%emt 0:00:24]} 55. Kxh5 {[%emt 0:00:06]} Rh7+ {[%emt 0:01:19][%mdl 32768] Never resign too early!  Weighted Error Value: White=0.40/Black=0.41. Loss on time!?} 0-1

[Event "Canarian Championship Seniors 2022"]
[Site "Brena Baja La Palma"]
[Date "2022.06.02"]
[Round "3.1"]
[White "Martin Rodriguez, Jose Carlos"]
[Black "Perez Aleman, Pedro Tomas"]
[Result "1-0"]
[ECO "D30"]
[WhiteElo "1703"]
[BlackElo "2047"]
[Annotator "TA"]
[PlyCount "91"]
[EventDate "2022.06.01"]
[EventType "swiss"]
[EventCountry "ESP"]
[SourceTitle "playchess.com"]
[Source "ChessBase"]
[SourceQuality "1"]
[TimeControl "5400+30"]

{[%evp 15,91,39,96,80,100,82,104,105,209,94,85,90,78,73,78,65,62,64,62,68,66,9,8,9,278,277,279,278,288,285,276,273,300,294,358,350,349,344,329,338,423,435,628,621,612,564,726,723,713,654,759,752,765,777,989,912,991,913,1179,1106,1627,1507,29979,29980,29978,29978,29985,29986,29986,29987,29990,29991,29993,29991,29991,29992,29994,29995]} 1. c4 {[%emt 0:00:18]} e6 {[%emt 0:01:21]} 2. Nf3 {[%emt 0:01:54]} d5 {[%emt 0:00:19]} 3. g3 {[%emt 0:00:54]} Nf6 {[%emt 0:00:46]} 4. Bg2 {[%emt 0:00:15]} c5 {[%emt 0:01:26]} 5. cxd5 {[%emt 0:01:52]} exd5 {[%emt 0:00:22]} 6. d4 {[%emt 0:00:28]} Nc6 {[%emt 0:00:33]} 7. O-O {[%emt 0:00:18]} cxd4 {[%emt 0:01:38]} 8. Nxd4 {[%emt 0:01:10]} Bc5 {[%emt 0:00:26] [#] is the new trend.} (8... Be7 $14) 9. Nxc6 $1 $16 {[%emt 0:00:19] D30: Queen's Gambit Declined: Systems without Nc3.} bxc6 {[%emt 0:01:16] [#]} 10. Qc2 $1 {[%emt 0:00:34] Prevents Bf5.} Qb6 {[%emt 0:26:14]} 11. Nc3 {[%emt 0:01:16] Black must now prevent Na4. White is better.} Ng4 {[%emt 0:01:48]} (11... Bd4 $16) 12. e3 {[%emt 0:00:58]} (12. e4 $18 {is the precise move to win.}) 12... Bd6 {[%emt 0:02:24] [#]} 13. Na4 $146 {[%emt 0:04:57]} (13. e4 O-O 14. exd5 Ba6 15. Na4 Qa5 16. Bd2 Qb5 17. dxc6 Qh5 18. h3 Bxf1 19. hxg4 Qxg4 20. Kxf1) ({Predecessor:} 13. e4 O-O 14. exd5 Ba6 15. Na4 Qa5 16. Bd2 Qb5 17. dxc6 Qh5 18. h3 Bxf1 19. hxg4 Qxg4 20. Kxf1 {1-0 (40) Saumanaite,S (2033)-Plutaite,A (1400) Vilnius 2020}) 13... Qc7 {[%emt 0:02:10]} 14. Bd2 {[%emt 0:01:05][%cal Bc1d2,Bd2c3,Bc3e5,Be5d6][%mdl 32]} O-O {[%emt 0:08:40]} 15. Rac1 {[%emt 0:00:04]} Ne5 {[%emt 0:00:32]} 16. Bc3 {[%emt 0:05:43]} Bd7 {[%emt 0:14:13]} 17. b3 {[%emt 0:07:33]} Rac8 {[%emt 0:01:23]} 18. Rfd1 {[%emt 0:02:43]} ({Better is} 18. Bd4 $14) 18... Bg4 $11 {[%emt 0:04:50]} 19. Bxe5 {[%emt 0:03:15]} Bxd1 $4 {[%emt 0:01:58][%mdl 8192] This move loses the game for Black.} (19... Bxe5 $11 {and Black stays safe.} 20. Rd2 Rfe8) 20. Bxd6 $18 {[%emt 0:00:47] Qc5 is the strong threat.} Bxc2 {[%emt 0:00:17]} 21. Bxc7 {[%emt 0:00:07] A strong pair of Bishops.} Bxb3 {[%emt 0:01:34]} 22. axb3 {[%emt 0:00:21]} Rxc7 {[%emt 0:00:21]} 23. Bxd5 {[%emt 0:00:15]} Rfc8 {[%emt 0:01:55]} 24. Bc4 {[%emt 0:00:18]} c5 {[%emt 0:05:12]} 25. Rd1 {[%emt 0:01:12]} Kf8 {[%emt 0:01:04]} 26. Rd5 {[%emt 0:00:20]} Ke7 {[%emt 0:02:22]} 27. Nc3 {[%emt 0:02:07]} Rd8 {[%emt 0:02:45]} 28. Rh5 {[%emt 0:00:24]} h6 {[%emt 0:07:08]} (28... Kf8 $142 29. Rxh7 Kg8) 29. Nd5+ {[%emt 0:00:15]} Rxd5 {[%emt 0:00:01]} 30. Rxd5 {[%emt 0:00:03][%mdl 4096] Endgame KRB-KR} Rc6 {[%emt 0:02:06]} 31. Kg2 {[%emt 0:00:51]} Rc7 {[%emt 0:00:56]} 32. e4 {[%emt 0:00:28][%cal Be3e4,Be4e5][%mdl 32]} Rc6 {[%emt 0:00:58]} 33. e5 {[%emt 0:00:09]} Rc7 {[%emt 0:01:45]} 34. f4 {[%emt 0:01:21][%cal Bf2f4,Bf4f5][%mdl 32]} Rc6 {[%emt 0:00:15]} 35. Kf3 {[%emt 0:00:12]} Rc7 {[%emt 0:00:14]} 36. g4 {[%emt 0:00:37]} Rc6 {[%emt 0:00:20]} 37. h4 {[%emt 0:00:05][%cal Bh2h4,Bh4g5,Bg5g6][%mdl 32]} Rc7 {[%emt 0:00:14]} 38. f5 {[%emt 0:00:02] aiming for g5.} a5 {[%emt 0:02:28]} 39. g5 {[%emt 0:00:05] White mates.} hxg5 {[%emt 0:00:02]} 40. hxg5 {[%emt 0:00:14]} f6 {[%emt 0:01:37]} 41. exf6+ {[%emt 0:00:11]} gxf6 {[%emt 0:00:02]} 42. g6 {[%emt 0:00:19]} Kf8 {[%emt 0:02:27]} 43. Rd8+ {[%emt 0:00:56]} Kg7 {[%emt 0:00:18]} 44. Ra8 {[%emt 0:00:12]} Kh6 {[%emt 0:00:19]} 45. Kf4 {[%emt 0:00:10]} Rd7 {[%emt 0:00:42]} 46. Rh8+ {[%emt 0:00:14] Weighted Error Value: White=0.14 (very precise) /Black=0.44} 1-0

[Event "Canarian Championship Seniors 2022"]
[Site "Brena Baja La Palma"]
[Date "2022.06.02"]
[Round "3.2"]
[White "Gasco Navarro, Enrique"]
[Black "Martin Luis, Cesar"]
[Result "0-1"]
[ECO "A85"]
[WhiteElo "1240"]
[BlackElo "2049"]
[Annotator "TA"]
[PlyCount "44"]
[EventDate "2022.06.01"]
[EventType "swiss"]
[EventCountry "ESP"]
[SourceTitle "playchess.com"]
[Source "ChessBase"]
[SourceQuality "1"]
[TimeControl "5400+30"]

{[%evp 10,44,22,22,37,8,28,15,33,43,64,-12,1,-18,-9,-70,-46,-43,-28,-33,-10,-153,-130,-268,-262,-245,-257,-254,-201,-237,-223,-241,-220,-291,-272,-308,-311]} 1. d4 {[%emt 0:00:03]} f5 {[%emt 0:00:13]} 2. c4 {[%emt 0:00:21]} Nf6 {[%emt 0:00:19]} 3. Nc3 {[%emt 0:00:33]} g6 {[%emt 0:00:29]} 4. Bg5 {[%emt 0:00:49]} Bg7 {[%emt 0:00:36]} 5. Nf3 {[%emt 0:00:20]} d6 {[%emt 0:01:03]} 6. e3 {[%emt 0:00:28]} c6 {[%emt 0:01:12] A85: Dutch Defence: 2 c4 Nf6 3 Nc3.} 7. Bd3 {[%emt 0:00:22]} O-O {[%emt 0:02:05]} 8. O-O {[%emt 0:00:26]} Qc7 {[%emt 0:02:37] The position is equal.} 9. h3 {[%emt 0:02:13]} e5 {[%emt 0:00:55] [#]} 10. dxe5 $146 {[%emt 0:01:43]} (10. c5 $14 e4 11. cxd6 Qxd6 12. Bc4+ Kh8 13. Ne5) ({Predecessor:} 10. c5 e4 11. cxd6 Qxd6 12. Bc4+ Kh8 13. Ne5 Be6 14. Bf4 Qe7 15. Qb3 Bxc4 16. Nxc4 {1-0 (35) Sunye Neto,J (2530)-Resende,A (2350) Campinas 1994}) 10... dxe5 $11 {[%emt 0:00:07]} 11. Bc2 {[%emt 0:05:25]} Na6 {[%emt 0:01:18]} 12. a3 {[%emt 0:00:52]} (12. Bh4 $11) 12... Be6 {[%emt 0:01:06]} (12... Nh5 $5 {[%cal Rh7h6]} 13. Bh4 h6 $15) 13. Qe2 {[%emt 0:01:30]} h6 {[%emt 0:08:09]} 14. Bh4 {[%emt 0:05:47]} Nh5 {[%emt 0:01:17]} 15. Nh2 {[%emt 0:04:14] [#]} (15. Rad1 $11) 15... Qf7 $1 $17 {[%emt 0:00:42] Hoping for ...g5.} 16. f4 {[%emt 0:04:20] Against g5. This move loses the game for White.} (16. f3 $17 {keeps fighting.}) 16... Bxc4 {[%emt 0:02:37]} 17. Bd3 {[%emt 0:00:53]} Bxd3 {[%emt 0:00:32]} 18. Qxd3 {[%emt 0:00:06]} e4 {[%emt 0:01:21]} 19. Qe2 {[%emt 0:01:47]} Nc5 {[%emt 0:00:00]} 20. g4 {[%emt 0:00:36]} Nf6 {[%emt 0:04:39]} 21. g5 {[%emt 0:04:43]} Nd5 {[%emt 0:05:50]} 22. Nxd5 {[%emt 0:02:30]} cxd5 {[%emt 0:00:50] Weighted Error Value: White=0.49/Black=0.10 (very precise)} ({Stronger than} 22... Qxd5 23. gxh6 Bxh6 24. Be7 $17) 0-1